Cogmind - Beta 14 @@@ ROGUE MODE // 2024.08.26 @ 13:07:43 Player: DZKane Result: Destroyed by P-60 Hacker with Shock Rifle Performance ------------- Evolutions (3) 1500 Regions Visited (4) 800 Robots Destroyed (98) 490 Value Destroyed (3436) 3436 Prototype IDs (4) 80 Alien Tech Used (0) 0 Bonus (648) 648 TOTAL SCORE: 6954 Bonus ------- High Alert Combat Kills 648 Cogmind --------- Core Integrity 0/700 Matter 276/300 Energy 144/360 System Corruption 10% Temperature Cool (-100) Movement Rolling (130) Ox2 Location -7/Factory Parts ------- > --- POWER (1) -------- Light Nuclear Core > --- PROPULSION (4) --- Armored Huge Wheel > --- UTILITY (4) ------ Cryofiber Web Improved Heat Sink High-capacity Storage Unit Compact Battery > --- WEAPON (4) ------- Particle Gun Cooled Pulse Rifle Great Axe > --- INVENTORY (20) --- Light Nuclear Core Improved Sensor Array Energy Filter Weapon Cycler Hacking Suite Hacking Suite Improved Field Recycling Unit (0) Improved Grenade Launcher Improved Grenade Launcher Peak State ------------ > --- POWER ------------ Heavy Deuterium Engine > --- PROPULSION ------- Armored Huge Wheel Armored Huge Wheel > --- UTILITY ---------- High-capacity Storage Unit Improved Sensor Array Improved Signal Interpreter Improved Medium Armor Plating > --- WEAPON ----------- Flak Gun Precision Assault Rifle Precision Assault Rifle Precision Assault Rifle > --- INVENTORY -------- Heavy Ion Engine Armored Huge Wheel Armored Huge Wheel Cryofiber Web Heavy Armor Plating Hardlight Generator Hacking Suite Hacking Suite Improved Field Recycling Unit High-powered Shotgun High-powered Shotgun High-powered Shotgun High-powered Shotgun Improved Grenade Launcher Improved Grenade Launcher Great Axe [Rating: 57] Favorites ----------- Power Heavy Ion Engine Engine Heavy Ion Engine Power Core Light Nuclear Core Propulsion Armored Huge Wheel Treads Light Treads Wheel Armored Huge Wheel Hover Unit Improved Hover Unit Utility High-capacity Storage Unit Device Cryofiber Web Storage High-capacity Storage Unit Processor Improved Signal Interpreter Protection Hardened Medium Armor Plating Weapon Precision Assault Rifle Energy Gun Medium Laser Ballistic Gun Precision Assault Rifle Launcher Improved Grenade Launcher Impact Weapon Hammer Slashing Weapon Great Axe Build | -11 -10 -9 -8 -7 ------- Run | Yrd Mat Mat Mat Fac Slots Evolved 6 | . . 2 2 2 Power . | . . . . . Propulsion 2 | . . 2 . . Utility 2 | . . . . 2 Weapon 2 | . . . 2 . Parts Attached 113 | 6 13 12 27 55 Power 15 | 1 1 2 2 9 Engine 12 | 1 1 2 2 6 Core 3 | . . . . 3 Reactor . | . . . . . Propulsion 24 | 2 4 4 9 5 Treads 3 | . . . 3 . Leg . | . . . . . Wheel 17 | 2 4 . 6 5 Hover 4 | . . 4 . . Flight . | . . . . . Utility 31 | 1 5 2 5 18 Device 10 | . . . 1 9 Storage 5 | 1 1 1 1 1 Processor 3 | . 1 . . 2 Hackware . | . . . . . Protection 13 | . 3 1 3 6 Artifact . | . . . . . Weapon 43 | 2 3 4 11 23 Energy Gun 10 | 1 2 1 . 6 Energy Cannon . | . . . . . Ballistic Gun 29 | 1 1 2 11 14 Ballistic Cannon . | . . . . . Launcher 2 | . . . . 2 Special Weapon . | . . . . . Impact Weapon 1 | . . 1 . . Slashing Weapon 1 | . . . . 1 Piercing Weapon . | . . . . . Special Melee Weapon . | . . . . . Unidentified Prototypes 4 | . . . 2 2 Parts Lost 34 | . 4 2 . 28 Power 4 | . 1 . . 3 Propulsion 10 | . 3 2 . 5 Utility 6 | . . . . 6 Weapon 14 | . . . . 14 Highest Loss Streak 11 | . 2 1 . 11 To Critical Strikes . | . . . . . Average Slot Usage (%) 87 | . 92 95 90 80 Engine 8 | . 12 11 9 6 Treads 1 | . . . 6 . Wheel 15 | . 22 . 17 14 Hover 5 | . . 40 2 . Device 4 | . . . . 10 Storage 9 | . 14 10 9 7 Processor 1 | . . . . 3 Protection 8 | . 13 11 8 5 Energy Gun 6 | . 14 6 . 6 Ballistic Gun 21 | . 14 10 32 22 Impact Weapon 1 | . . 5 3 . Peak Build Rating 57 | 6 10 18 50 57 Average Rating 31 | 4 7 16 35 48 On Entrance 15 | . 6 10 14 49 Naked Turns . | . . . . . Heaviest Build 89 | 14 33 40 76 89 Greatest Support 56 | 26 32 28 56 56 Greatest Overweight (x) 4 | 1 4 2 3 2 Average Overweight (x) 1 | . . 1 . 1 Largest Inventory Capacity 20 | 8 15 15 20 20 Average Capacity 16 | 7 12 14 16 20 Most Carried 20 | 1 15 15 20 20 Average Carried 13 | . 6 11 15 16 Final Capacity 20 | 8 15 15 20 20 Final Carried 20 | 1 15 13 20 9 Class Distribution -------------------- 33% | Mutant 19% | Tank 16% | Skirmisher 14% | Scavenger-Tank 6% | Scavenger-Mutant 5% | Gunner 4% | Scavenger-Gunner Dominant Class ---------------- Mutant | -10/Materials Mutant | -9/Materials Tank | -8/Materials Skirmisher | -7/Factory Resources | -11 -10 -9 -8 -7 ----------- Run | Yrd Mat Mat Mat Fac Matter Collected 2652 | 226 354 140 638 1294 Remotely . | . . . . . Salvage Created 3756 | . 739 423 661 1933 Parts 199 | . 41 24 45 89 Haulers Intercepted 7 | . 1 . 3 3 Recyclers Shooed 2 | . 1 . . 1 Parts Field Recycled 25 | . . . 16 9 Retrieved Matter 294 | . . . 210 84 Parts Self-Destructed . | . . . . . Prevented . | . . . . . Kills | -11 -10 -9 -8 -7 ------- Run | Yrd Mat Mat Mat Fac Combat Hostiles Destroyed 74 | . 12 9 12 41 Melee 3 | . . 2 . 1 Guns 63 | . 12 4 12 35 AOE 4 | . . . . 4 Classes Destroyed 17 | . 6 2 2 7 Worker 8 | . 3 . 2 3 Builder 1 | . . . . 1 Tunneler 1 | . . . . 1 Hauler 7 | . 1 . 3 3 Recycler 2 | . 1 . 1 . Mechanic 1 | . . . . 1 Operator 2 | . 1 . . 1 Watcher 2 | . 1 . 1 . Swarmer 10 | . . . 6 4 Grunt 38 | . 12 4 3 19 Brawler 3 | . . 1 . 2 Duelist 2 | . . . . 2 Protector 1 | . . . . 1 Sentry 8 | . . 4 2 2 Specialist 2 | . . . . 2 Hunter 6 | . . . 1 5 Programmer 4 | . . . . 4 Best Kill Streak 8 | . 3 2 5 8 Combat Bots Only 6 | . 2 2 3 6 Max Kills in Single Turn 3 | . 1 1 2 3 Gunslinging 1 | . . . 1 . Exploded 3 | . . . . 3 Melee 1 | . . 1 . 1 Uniques/NPCs Destroyed . | . . . . . Combat | -11 -10 -9 -8 -7 -------- Run | Yrd Mat Mat Mat Fac Hostile Shots Fired 565 | . 88 44 31 402 Missed 145 | . 31 10 7 97 Damage Taken 6757 | . 745 490 297 5225 Core 997 | . 175 86 22 714 Absorbed by Shields 172 | . . . . 172 Redirected to Shielding 26 | . 26 . . . Regen/Repaired (Parts) 216 | . . . 69 147 Core Remaining (%) 76 | 100 30 78 96 . Volleys Fired 247 | . 81 16 27 123 Largest 4 | . 2 2 4 4 Hottest 176 | . 70 76 112 176 Shots Fired 704 | . 162 30 100 412 Gun 700 | . 162 30 100 408 Cannon . | . . . . . Launcher 4 | . . . . 4 Special . | . . . . . Kinetic 463 | . 81 16 100 266 Thermal 237 | . 81 14 . 142 Explosive 4 | . . . . 4 Electromagnetic . | . . . . . Robot Hit Streak 23 | . 22 7 18 23 Robot Miss Streak 6 | . 5 2 3 6 Penetration Max 1 | . . . . 1 Secondary Targets 6 | . 1 . 1 4 Max Gunslinging Chain 1 | . 1 . 1 1 Shots Hit Robots 471 | . 105 35 60 271 Core Hits 219 | . 38 9 25 147 Critical Kills . | . . . . . Critical Parts Destroyed 6 | . 1 3 1 1 Critical Strikes 14 | . 3 4 1 6 Burn 8 | . 2 1 . 5 Destroy 3 | . 1 . 1 1 Smash 3 | . . 3 . . Melee Attacks 21 | . . 19 1 1 Impact 20 | . . 19 1 . Slashing 1 | . . . . 1 Piercing . | . . . . . Sneak Attacks 1 | . . . 1 . Combat Hostiles . | . . . . . Follow-up Attacks . | . . . . . Damage Inflicted 8903 | . 1247 603 1202 5851 Guns 7913 | . 1247 203 1146 5317 Cannons . | . . . . . Explosions 493 | . . . . 493 Melee 489 | . . 400 56 33 Ramming 8 | . . . . 8 Kinetic 5474 | . 624 95 1146 3609 Thermal 2462 | . 623 108 . 1731 Explosive 470 | . . . . 470 Electromagnetic . | . . . . . Impact 456 | . . 400 56 . Slashing 33 | . . . . 33 Piercing . | . . . . . Highest Corruption 9 | . . . . 9 Average Corruption 5 | . . . . 5 Corruption Purged . | . . . . . Corruption Blocked . | . . . . . Effects 27 | . . . . 27 Message Errors 4 | . . . . 4 Matter Fused 8 | . . . . 8 Heat Flow Errors 7 | . . . . 7 Energy Discharges 2 | . . . . 2 Data Loss (minor) 1 | . . . . 1 Data Loss (major) 1 | . . . . 1 Misfires 1 | . . . . 1 Alerts 1 | . . . . 1 Weapon Failures 2 | . . . . 2 Overload Shots . | . . . . . Overflow Damage 69 | . . 69 . . Projectiles . | . . . . . Explosions . | . . . . . Melee 69 | . . 69 . . Knockbacks . | . . . . . Impact . | . . . . . Kinetic . | . . . . . Secondary . | . . . . . Self-Inflicted Damage 475 | . . . . 475 Shots 6 | . . . . 6 Rammed 2 | . . . . 2 Targets Rammed 2 | . . . . 2 Kicked . | . . . . . Crushed . | . . . . . Highest Temperature 568 | . 189 256 233 568 Average Temperature 80 | . 55 78 62 112 Received Heat Transfer 1734 | . 441 180 72 1041 Effects 8 | . . . . 8 Energy Bleed 1 | . . . . 1 Interference 2 | . . . . 2 Short Circuit 1 | . . . . 1 Damage (major) 4 | . . . . 4 Siege Activations . | . . . . . Robots Corrupted 3 | . . 3 . . Combat Hostiles 3 | . . 3 . . Parts Fried 4 | . . 4 . . Impact Corruptions 4 | . . 4 . . Robots Melted 1 | . . . . 1 Combat Hostiles 1 | . . . . 1 Parts Melted 14 | . 6 . . 8 Heat Transferred 5644 | . 1904 346 . 3394 Parts Sabotaged . | . . . . . Parts Stolen . | . . . . . Parts Stripped . | . . . . . Power Chain Reactions . | . . . . . Alert | -11 -10 -9 -8 -7 ------- Run | Yrd Mat Mat Mat Fac Peak Influence 984 | . 236 315 297 984 Initial 109 | . . 35 68 109 Average 300 | . 102 142 175 549 Maximum Alert Level 3 | . 1 1 1 3 Low Security (%) 52 | 100 96 71 58 17 Level 1 20 | . 3 28 41 14 Level 2 12 | . . . . 31 Level 3 14 | . . . . 36 Level 4 . | . . . . . Level 5 . | . . . . . High Security . | . . . . . Max Security . | . . . . . Squads Dispatched 17 | . 3 . 1 13 Investigation 2 | . . . 1 1 Extermination 2 | . . . . 2 Reinforcement 8 | . 3 . . 5 Assault 2 | . . . . 2 Garrison 3 | . . . . 3 Intercept . | . . . . . Searches Triggered . | . . . . . Construction Impeded . | . . . . . Haulers Reinforced 2 | . . . . 2 Active Scanning Responses . | . . . . . Cargo Convoy Interrupts 1 | . . . . 1 Stealth | -11 -10 -9 -8 -7 --------- Run | Yrd Mat Mat Mat Fac Distress Signals 3 | . 1 2 . . Communications Jammed . | . . . . . Distress Signals . | . . . . . Times Spotted 130 | . 19 12 19 80 Peak Tracking Total 12 | . 4 4 4 12 Tactical Retreats 12 | . 2 2 1 7 Traps | -11 -10 -9 -8 -7 ------- Run | Yrd Mat Mat Mat Fac Traps Triggered 5 | . 1 . . 4 Indirectly . | . . . . . Trap Hack Attempts . | . . . . . Triggered . | . . . . . Disarmed . | . . . . . Reprogrammed . | . . . . . Reused . | . . . . . Traps Extracted . | . . . . . Installed . | . . . . . Triggered . | . . . . . Machines | -11 -10 -9 -8 -7 ---------- Run | Yrd Mat Mat Mat Fac Machines Disabled 13 | . . . 1 12 Max in Single Turn 5 | . . . 1 5 Machines Repaired . | . . . . . Machines Dismantled . | . . . . . Machines Sabotaged . | . . . . . Overloaded Fab Kills . | . . . . . Hacking | -11 -10 -9 -8 -7 --------- Run | Yrd Mat Mat Mat Fac Machines Accessed 17 | . 2 3 6 6 Terminals 10 | . 2 2 4 2 Fabricators . | . . . . . Repair Stations 3 | . . . 1 2 Recycling Units 1 | . . . . 1 Scanalyzers 2 | . . 1 1 . Garrison Access 1 | . . . . 1 Total Hacks 51 | . 4 8 23 16 Successful 26 | . 2 5 14 5 Failed 24 | . 2 3 8 11 Catastrophic 4 | . . . . 4 Database Lockouts 1 | . . . 1 . Manual 28 | . 4 4 13 7 Terminals 28 | . 4 6 12 6 Fabricators . | . . . . . Repair Stations 11 | . . . 5 6 Recycling Units 2 | . . . . 2 Scanalyzers 8 | . . 2 6 . Garrison Access 2 | . . . . 2 Terminal Hacks 2 | . . 1 1 . Robot Analysis 2 | . . 1 1 . Fabricator Hacks . | . . . . . Repair Station Hacks 9 | . . . 5 4 Scan Component 6 | . . . 3 3 Repair 3 | . . . 2 1 Recycling Unit Hacks . | . . . . . Scanalyzer 8 | . . 2 6 . Insert Component 4 | . . 1 3 . Analyze 4 | . . 1 3 . Garrison Access Hacks . | . . . . . Unauthorized Hacks 7 | . 2 2 2 1 Terminals 7 | . 2 2 2 1 Botnet 6 | . 2 1 2 1 Skim 1 | . . 1 . . Fabricators . | . . . . . Repair Stations . | . . . . . Recycling Units . | . . . . . Scanalyzers . | . . . . . Garrison Access . | . . . . . Data Cores Recovered . | . . . . . Used . | . . . . . Hacking Detections 17 | . 2 3 6 6 Full Trace Events 2 | . . . 1 1 Feedback Events . | . . . . . Feedback Blocked . | . . . . . Robot Schematics Acquired . | . . . . . Robots Built . | . . . . . Authchips . | . . . . . Time . | . . . . . Total Robot Build Rating . | . . . . . Part Schematics Acquired 4 | . . 1 3 . Parts Built . | . . . . . Authchips . | . . . . . Time . | . . . . . Total Part Build Rating . | . . . . . Parts Repaired 3 | . . . 2 1 Time 111 | . . . 76 35 Parts Recycled . | . . . . . Recycled Matter . | . . . . . Retrieved Matter . | . . . . . Retrieved Components . | . . . . . Parts Scanalyzed 4 | . . 1 3 . Part Schematics Acquired 4 | . . 1 3 . Parts Damaged . | . . . . . Bothacking | -11 -10 -9 -8 -7 ------------ Run | Yrd Mat Mat Mat Fac Used RIF Installer . | . . . . . Robots Hacked . | . . . . . Non-combat . | . . . . . Combat . | . . . . . Robot Hacks Applied . | . . . . . Relay Couplers Released 4 | . . . . 4 Programmers 4 | . . . . 4 Fabnet Peak Effective % . | . . . . . Robots Rewired . | . . . . . Allies Hacked . | . . . . . Hacks Repelled . | . . . . . Allies | -11 -10 -9 -8 -7 -------- Run | Yrd Mat Mat Mat Fac Total Allies . | . . . . . Largest Group . | . . . . . Highest-Rated Group . | . . . . . Highest-Rated Ally . | . . . . . Total Orders . | . . . . . Ally Attacks . | . . . . . Total Damage . | . . . . . Kills . | . . . . . Allies Corrupted . | . . . . . Allies Melted . | . . . . . Intel | -11 -10 -9 -8 -7 ------- Run | Yrd Mat Mat Mat Fac Robot Analysis Total 2 | . . 1 1 . Derelict Logs Recovered . | . . . . . Drone Launches . | . . . . . Drone Recoveries . | . . . . . Exploration | -11 -10 -9 -8 -7 ------------- Run | Yrd Mat Mat Mat Fac Turns Passed 3791 | 45 838 480 935 1493 Spaces Moved 2142 | 40 509 249 581 763 Core 7 | 1 6 . . . Treads . | . . . . . Legs . | . . . . . Wheels 1879 | 39 503 . 574 763 Hover 256 | . . 249 7 . Flight . | . . . . . Fastest Speed 48 | 50 90 48 100 100 Average Speed 112 | 87 99 114 115 118 Slowest Speed 250 | 95 250 176 236 130 Overloaded Moves . | . . . . . Propulsion Burnouts . | . . . . . Robots Hopped . | . . . . . Cave-ins Triggered . | . . . . . Exploration Rate (%) 35 | 4 78 22 46 25 Regions Visited 4 Branch Regions . Pre-discovered Areas . | . . . . . Known Exits Taken . | . . . . . Unknown Exits Taken 4 | 1 1 1 1 . Scrap Searched . | . . . . . Spaces Dug . | . . . . . Terrain Destroyed 74 | . . . . 74 Melee . | . . . . . Projectile . | . . . . . AOE 74 | . . . . 74 Terrain Rammed . | . . . . . Walls Destroyed . | . . . . . Machines Disabled . | . . . . . Actions | -11 -10 -9 -8 -7 --------- Run | Yrd Mat Mat Mat Fac Total 2971 | 46 678 387 788 1072 Wait 316 | . 60 67 99 90 Move 2138 | 39 508 248 580 763 Hop . | . . . . . Pick Up 72 | 1 11 13 23 24 Fast Attach 31 | 6 7 2 5 11 Attach 42 | . . 5 6 31 Detach 1 | . . . . 1 Swap 40 | . 6 5 16 13 Drop 61 | . 5 12 31 13 Fire 247 | . 81 16 27 123 Melee 21 | . . 19 1 1 Ram 2 | . . . . 2 Kick . | . . . . . Crush . | . . . . . Escape Stasis . | . . . . . Rewire . | . . . . . Trap . | . . . . . Miscellaneous . | . . . . . Route ------- -11/Scrapyard -10/Materials (discovered 2 exits: *Mat x2) -9/Materials -8/Materials -7/Factory History --------- Turn | Location | Event 9 | -11/Scrapyard | Discovered new exit (range 16) 46 | -11/Scrapyard | Entered Materials 251 | -10/Materials | Discovered new exit (range 10) 286 | -10/Materials | Core integrity fell below 50% 312 | -10/Materials | Build established: Mutant 709 | -10/Materials | Discovered new exit (range 7) 884 | -10/Materials | Entered another Materials area 884 | -9/Materials | Evolved 2 slots: Propulsion x2 1276 | -9/Materials | Discovered new exit (range 16) 1364 | -9/Materials | Entered another Materials area 1364 | -8/Materials | Evolved 2 slots: Weapon x2 1483 | -8/Materials | Repaired Corrupted Hvy. Assault Rifle 1518 | -8/Materials | Repaired Imp. Hover Unit 1666 | -8/Materials | Build established: Scavenger-Tank 1972 | -8/Materials | Build established: Tank 2131 | -8/Materials | Central database locked down 2137 | -8/Materials | Discovered new exit (range 13) 2299 | -8/Materials | Entered Factory 2299 | -7/Factory | Evolved 2 slots: Utility x2 2531 | -7/Factory | Garrison activated, responded to threat 2584 | -7/Factory | Build established: Skirmisher 2935 | -7/Factory | Lost 3 parts (3w) 3047 | -7/Factory | Repaired Prc. Assault Rifle 3159 | -7/Factory | Cargo convoy interrupted 3198 | -7/Factory | Core integrity fell below 50% 3290 | -7/Factory | Lost 11 parts (1p2n3u5w) 3499 | -7/Factory | First assault squad dispatched 3705 | -7/Factory | Core integrity fell below 20% 3731 | -7/Factory | Lost 3 parts (1p2w) 3792 | -7/Factory | Destroyed by P-60 Hacker with Shock Rifle Last Messages --------------- 03733_ K-01 Serf collects debris. 03735_ G-47 Trooper destroyed. 03736_ K-01 Serf collects debris. 03745_ G-47 Trooper suffers critical hit (Burn). 03749_ System corrupted: Matter fused (-9). 03749_ Particle Gun melted. 03749_ Lgt. Nuclear Core melted. 03749_ Imp. Heat Sink melted. 03749_ G-47 Trooper destroyed. 03756_ Broken Arm. Huge Wheel destroyed. 03767_ Lgt. Nuclear Core destroyed. 03767_ Cld. Pulse Rifle destroyed. 03769_ Particle Gun destroyed. 03774_ S-27 Virus destroyed. 03776_ System corrupted: FCS attempts to trigger Particle Gun. 03776_ System corrupted: Particle Gun misfires. 03786_ Wheel destroyed. 03790_ M-28 Smith repairs S-27 Virus. 03792_ M-28 Smith repairs VTOL Module. Map ----- +----------------------------------------------------+ | ??#* ## """" # | | ??# ## """" # | | ??# ## """" # | | ??# ## """" # | | ??# """ """ ## """" + | | ??# """ """ ## # | | ??# """ """ ## # | | ??# ########### | | ??######+######## | | ?????# | | ?????# #########+# | | ?????# """ "" ## # | | ?????# ! """ "" ??# """"" # | | ?????# """ T"???# """"" # | | ?###### """ "" ?? """ # | | # # "" #??? # | | # !" [ ^ """ %#???####### | | # """ #%%^ """ =! #?????????## | | # """ # =]] """ !! #??????????? | | # """ # i """ #??????????? | | # # #??????????? | | # """ # = #??????????? | | # """ ## m % #?????????? | | ? """ ##s##### #######?????????? | | ???? ## #???? #???????????????? | | ???? ?#@#?????#???????????????## | | ???? !?#p#??????????????????????? | | ????##?#% ??????????????????????? | | ???????# ??????????????????????? | | ???????#[ "?????????????????????? | | ???????# "?????????????????????? | | ???????# ""???????????H????????? | | ???????# ""????????????????????? | | ???????# ????????????????????? | | ???????? ""????????????????????? | | ???????? "?????????????????????? | | ???????? "?????????????????????? | | ???????? "?????????????????????? | | ???????? ?????????????????????? | | ????????#+??????????????????????? | | ????????????????????????????????? | | ????????????????????????????????? | | ????????????????????????????????? | | ????????????????????????????????? | | ????????????????????????????????? | | ????????????????????????????????? | | ????????????????????????????????? | | ????????????????????????????????? | | ????????????????????????????????? | | ????????????????????????????????? | +----------------------------------------------------+ Best States ------------- Heat Dissipation 62 Energy Generation 18 Energy Capacity 490 Matter Stores 300 Matter Capacity 300 Sight Range 16 Robot Scan Range 15 Terrain Scan Density 10 Base Temperature (-) 100 Armor Coverage 600 Power Shielding 33 Evasion (%) 55 Target Analysis 6 Recoil Reduction 2 Item Schematics ----------------- Hacking Suite | -9/Materials | Scanalyzed Hvy. Armor Plating | -8/Materials | Scanalyzed Prc. Assault Rifle | -8/Materials | Scanalyzed Arm. Huge Wheel | -8/Materials | Scanalyzed Robot Schematics ------------------ None Fabricated ------------ Nothing Alien Tech Used ----------------- None Achievements -------------- Fist Fight Challenges ------------ None Game ------ Seed DecoySpikedPlating Manual? 0 Play Time 00:48:32 Cumulative 102.6 hours Start 2024.08.26 @ 12:20:43 End 2024.08.26 @ 13:07:43 Sessions 1 Manual Loads 0 Difficulty Rogue Special Mode None Game No. 75 Rogue 75 Adventurer 0 Explorer 0 Win Type - Total 2 Types 2/0/0/0/0/0/0/0/0 Lore% 50 Gallery% 55 Achievement% 48 Wizard Run 0 Options --------- Layout 1 ASCII 0 Keyboard 0 Movement Mouse Keybinds 0 Fullscreen 1 Font 24/Smallcaps Map View 50x35 Zoom Use 0% Tactical HUD 1 Map Filters NONE Filters NONE Steam 1 RUN: 12611f18-8dc4-4ce8-bef2-e55976bf217f